bitfinex/quotes_SOLUSD_20250204
["timestamp","ask_amount","ask_price","bid_price","bid_amount"]
[1738693113809,0.063,212.89,212.83,18.49579625]
[1738693113985,18.55879625,212.89,212.81,18.49579625]
[1738693114410,4.6974,212.88,212.82,0.12549]
[1738693114602,18.49579625,212.85,212.77,18.49579625]
[1738693114807,18.49579625,212.85,212.77,23.19569625]
[1738693115004,18.49579625,212.87,212.8,0.12549]
[1738693115196,18.49579625,212.87,212.8,0.37647]
[1738693116094,18.55879625,212.89,212.83,0.12549]
[1738693116300,23.25599625,212.89,212.83,0.12549]
[1738693116507,18.55879625,212.89,212.82,4.6987]
[1738693117322,23.25599625,212.89,212.83,0.12549]
[1738693118298,0.063,212.89,212.85,18.62128625]
[1738693118705,0.063,212.89,212.87,0.12549]
[1738693119824,0.063,212.89,212.87,0.37647]
[1738693120920,0.063,212.89,212.85,18.49579625]
[1738693121117,18.55879625,212.89,212.81,18.49579625]
[1738693121618,18.55879625,212.89,212.84,20.0]
[1738693121816,18.55879625,212.89,212.81,18.49579625]
[1738693122134,18.55879625,212.89,212.82,0.12549]
[1738693123037,18.55879625,212.89,212.79,4.95038]
[1738693123038,18.49579625,212.87,212.8,4.6991]
[1738693123415,18.49579625,212.87,212.81,0.12549]
[1738693123626,23.25599625,212.89,212.81,18.62128625]
[1738693124918,18.49579625,212.87,212.81,0.12549]
[1738693125238,23.25599625,212.89,212.81,23.32018625]
[1738693125624,18.55879625,212.89,212.82,13.78831853]
[1738693125827,0.063,212.89,212.85,38.62128625]
[1738693126022,0.063,212.89,212.88,0.12549]
[1738693126540,0.063,212.89,212.88,0.37647]
[1738693126752,0.063,212.89,212.88,5.07387]
[1738693127045,0.063,212.89,212.88,0.12549]
[1738693127740,0.063,212.89,212.85,20.0]
[1738693127941,18.49579625,212.87,212.79,18.49579625]
[1738693128131,18.49579625,212.85,212.79,18.49579625]
[1738693128443,18.49579625,212.85,212.8,20.0]
[1738693128929,18.49579625,212.83,212.75,18.49579625]
[1738693129246,18.49579625,212.83,212.76,0.12549]
[1738693129450,18.49579625,212.83,212.78,20.0]
[1738693131349,23.19449625,212.83,212.75,18.49579625]
[1738693131529,18.49579625,212.81,212.73,18.49579625]
[1738693131844,18.49579625,212.81,212.76,20.0]
[1738693132045,18.49579625,212.81,212.74,0.12549]
[1738693132250,6.2822,212.8,212.74,0.12549]
[1738693132544,1.583,212.8,212.74,4.82599]
[1738693133144,1.583,212.8,212.74,0.12549]
[1738693133342,1.583,212.8,212.69,18.49579625]
[1738693133343,18.49579625,212.77,212.69,18.49579625]
[1738693133671,18.49579625,212.75,212.7,20.0]
[1738693133855,18.49579625,212.75,212.72,20.0]
[1738693134049,18.49579625,212.77,212.72,20.0]
[1738693134256,18.49579625,212.75,212.67,18.49579625]
[1738693134768,18.49579625,212.72,212.65,0.37647]
[1738693134967,18.49579625,212.72,212.67,20.0]
[1738693135871,18.49579625,212.76,212.71,20.0]
[1738693136085,24.77799625,212.8,212.73,18.49579625]
[1738693136683,24.77799625,212.8,212.68,13.66282853]
[1738693136684,18.49579625,212.78,212.71,38.49579625]
[1738693137467,18.49579625,212.76,212.68,0.12549]
[1738693138043,18.49579625,212.76,212.68,4.82719]
[1738693139173,18.49579625,212.77,212.69,18.49579625]
[1738693140479,18.49579625,212.77,212.71,4.7012]
[1738693140647,18.49579625,212.79,212.72,0.12549]
[1738693140843,18.49579625,212.74,212.66,18.49579625]
[1738693141084,18.49579625,212.72,212.65,4.7025]
[1738693143965,18.49579625,212.7,212.65,20.0]
[1738693144678,4.7016,212.69,212.62,23.19879625]
[1738693145674,18.49579625,212.7,212.62,23.19879625]
[1738693146079,1.6123,212.71,212.65,0.12549]
[1738693146262,1.6123,212.71,212.67,0.12549]
[1738693146467,26.22159625,212.77,212.69,18.49579625]
[1738693147148,7.7258,212.77,212.72,18.49579625]
[1738693147381,26.07629625,212.82,212.75,0.12549]
[1738693147587,7.5805,212.82,212.76,18.49579625]
[1738693147890,7.5805,212.82,212.77,4.6999]
[1738693148099,30.77519625,212.82,212.74,18.49579625]
[1738693148307,7.5805,212.82,212.76,18.49579625]
[1738693148797,1.5437,212.82,212.78,18.49579625]
[1738693149193,6.3022,212.87,212.81,18.49579625]
[1738693149499,1.6323,212.88,212.79,0.12549]
[1738693149500,1.6323,212.88,212.83,18.49579625]
[1738693149701,1.6323,212.88,212.81,18.49579625]
[1738693150506,1.6323,212.88,212.83,18.49579625]
[1738693151897,1.6323,212.88,212.84,4.6983]
[1738693152397,1.6323,212.88,212.83,18.49579625]
[1738693152588,1.6323,212.88,212.76,18.49579625]
[1738693152589,20.12809625,212.88,212.8,23.19489625]
[1738693152788,1.6323,212.88,212.83,0.12549]
[1738693153075,0.063,212.89,212.86,18.49579625]
[1738693153399,0.063,212.89,212.88,18.62128625]
[1738693154093,0.063,212.89,212.88,23.31868625]
[1738693154406,0.063,212.89,212.87,18.49579625]
[1738693154701,0.063,212.89,212.88,18.62128625]
[1738693155608,0.063,212.89,212.87,4.6976]
[1738693156080,0.063,212.89,212.88,23.19319625]
[1738693156593,0.063,212.89,212.86,24.6977]
[1738693158518,0.063,212.89,212.88,32.40960478]
[1738693159188,0.063,212.97,212.92,20.25098]
[1738693159511,0.063,212.97,212.94,18.49579625]
[1738693159808,0.063,212.97,212.95,18.49579625]
[1738693159976,0.063,212.97,212.96,18.49579625]
[1738693160594,0.063,212.97,212.96,37.10530478]
[1738693160777,0.063,212.97,212.96,37.80939853]
[1738693160980,0.0001,212.97,212.96,37.80939853]
[1738693162093,0.0001,212.97,212.96,37.10530478]
[1738693162292,0.0001,212.97,212.96,37.80944751]
[1738693162611,0.0001,212.97,212.96,23.44247625]
[1738693162972,0.0001,212.97,212.96,37.10530478]
[1738693163305,0.0001,212.97,212.96,37.80938343]
[1738693168378,0.0001,213.01,213.0,20.50196]
[1738693168578,0.0001,213.01,213.0,71.60927218]
[1738693168815,0.0001,213.02,213.01,14.91380853]
[1738693168977,0.0001,213.02,213.01,33.40960478]
[1738693169319,0.063,213.11,213.06,1.50196]
[1738693169612,0.063,213.11,213.1,52.40960478]
[1738693169809,0.063,213.16,213.11,13.66282853]
[1738693170019,0.063,213.16,213.15,18.47981853]
[1738693170319,0.063,213.16,213.15,37.80456907]
[1738693170717,0.063,213.16,213.15,37.10110478]
[1738693170916,0.063,213.16,213.15,23.31278625]
[1738693171124,0.063,213.16,213.13,18.49579625]
[1738693171338,18.49579625,213.15,213.08,18.49579625]
[1738693171821,18.49579625,213.15,213.09,0.12549]
[1738693172419,18.49579625,213.15,213.08,18.49579625]
[1738693172638,18.49579625,213.13,213.06,18.49579625]
[1738693172954,7.921,213.14,213.09,18.49579625]
[1738693173111,7.921,213.14,213.08,18.62128625]
[1738693174039,1.6421,213.14,213.1,18.49579625]
[1738693174412,6.3338,213.14,213.08,18.49579625]
[1738693174647,6.3338,213.14,213.09,20.0]
[1738693175542,6.3338,213.14,213.06,18.49579625]
[1738693175543,18.49579625,213.13,213.06,18.49579625]
[1738693175748,18.49579625,213.11,213.04,18.49579625]
[1738693175955,18.49579625,213.09,213.0,23.19059625]
[1738693176123,18.49579625,213.05,212.96,18.49579625]
[1738693176811,18.49579625,213.05,212.99,20.0]
[1738693177321,18.49579625,213.03,212.96,18.49579625]
[1738693177624,18.49579625,213.03,212.96,23.19139625]
[1738693177834,1.5548,213.04,212.97,0.37647]
[1738693178025,1.5548,213.04,212.97,0.12549]
[1738693178243,1.5548,213.04,212.99,0.12549]
[1738693178481,1.5548,213.04,213.0,18.49579625]
[1738693178762,1.5548,213.04,212.99,0.37647]
[1738693179070,1.5548,213.04,213.0,18.49579625]
[1738693179372,1.5548,213.04,213.03,4.6941]
[1738693179948,1.5548,213.04,213.03,4.81959]
[1738693180144,1.5736,213.1,213.06,20.37647]
[1738693180338,6.085,213.13,213.09,18.49579625]
[1738693180561,1.5736,213.15,213.11,18.49579625]
[1738693180759,1.5736,213.15,213.12,0.12549]
[1738693180946,1.5736,213.15,213.09,18.49579625]
[1738693181267,1.5736,213.15,213.11,18.49579625]
[1738693181574,1.5736,213.15,213.11,23.18789625]
[1738693181967,1.5736,213.15,213.13,18.49579625]
[1738693182948,0.063,213.16,213.15,20.12549]
[1738693183155,0.063,213.16,213.15,38.87226625]
[1738693183351,0.063,213.16,213.15,52.40960478]
[1738693184885,0.063,213.16,213.15,43.56376625]
[1738693185056,0.063,213.16,213.15,57.10110478]
[1738693185465,0.063,213.16,213.15,43.31278625]
[1738693185990,0.063,213.16,213.15,57.10110478]
[1738693186691,0.063,213.16,213.15,43.56376625]
[1738693186859,0.063,213.16,213.15,43.31278625]
[1738693187681,0.063,213.16,213.09,23.18859625]
[1738693187864,0.063,213.16,213.07,18.49579625]
[1738693187865,18.49579625,213.15,213.07,18.49579625]
[1738693188066,18.49579625,213.15,213.07,23.18899625]
[1738693188385,0.063,213.16,213.1,0.12549]
[1738693188769,18.49579625,213.15,213.09,4.6926]
[1738693189084,18.49579625,213.15,213.07,23.18879625]
[1738693189280,18.49579625,213.15,213.08,0.12549]
[1738693189583,0.063,213.16,213.1,0.12549]
[1738693191282,0.063,213.16,213.1,4.81799]
[1738693191881,18.49579625,213.15,213.1,20.0]
[1738693192087,18.49579625,213.15,213.07,18.49579625]
[1738693192282,13.41184853,213.14,213.07,18.49579625]
[1738693192590,13.41184853,213.12,213.05,18.49579625]
[1738693192892,18.49579625,213.09,213.02,4.6943]
[1738693193468,13.41184853,213.08,213.01,18.49579625]
[1738693193671,18.49579625,213.07,213.0,0.12549]
[1738693194771,6.133,213.12,213.05,18.49579625]
[1738693194972,6.133,213.12,213.05,23.18949625]
[1738693195283,31.90764478,213.11,213.03,23.18969625]
[1738693196089,31.90764478,213.11,213.03,24.6939]
[1738693196266,31.90764478,213.11,213.03,20.0]
[1738693196685,13.41184853,213.08,213.03,20.0]
[1738693197668,4.6927,213.1,213.03,43.18989625]
[1738693198080,4.6927,213.1,213.03,20.0]
[1738693198569,4.6927,213.1,213.01,23.19019625]
[1738693198769,13.41184853,213.08,213.01,23.19019625]
[1738693199170,4.6927,213.1,212.99,0.12549]
[1738693199171,13.41184853,213.06,212.99,23.31608625]
[1738693199377,1.5857,213.03,212.97,18.49579625]
[1738693199575,18.49579625,213.04,212.97,18.49579625]
[1738693200507,6.1492,213.01,212.93,18.49579625]
[1738693201308,6.1492,213.01,212.96,0.12549]
[1738693201678,6.1492,213.01,212.96,4.82099]
[1738693202409,6.1492,213.01,212.95,18.49579625]
[1738693202579,7.8115,213.01,212.95,18.49579625]
[1738693203099,7.8115,213.01,212.95,23.19169625]
[1738693203600,12.5061,213.01,212.93,18.49579625]
[1738693204702,13.41184853,213.0,212.93,23.19189625]
[1738693204882,18.49579625,212.96,212.9,0.03]
[1738693205301,13.41184853,212.95,212.9,0.03]
[1738693205487,18.49579625,212.94,212.9,0.03]
[1738693206098,13.41184853,212.93,212.9,0.03]
[1738693206293,21.56084853,212.91,212.9,0.03]
[1738693206480,86.37023318,212.91,212.9,0.03]
[1738693207200,91.06703318,212.91,212.9,0.03]
[1738693207405,86.37023318,212.91,212.9,0.03]
[1738693208608,72.95838465,212.91,212.9,0.03]
[1738693208778,64.80938465,212.91,212.9,0.03]
[1738693210402,1.6565,212.96,212.9,0.15549]
[1738693210701,1.6565,212.96,212.93,18.49579625]
[1738693211302,1.6565,212.96,212.93,23.19189625]
[1738693212079,1.6565,212.96,212.91,23.19239625]
[1738693212285,1.6565,212.96,212.91,4.6966]
[1738693212983,1.6565,212.96,212.91,23.19239625]
[1738693213184,18.49579625,213.02,212.95,18.49579625]
[1738693213403,1.5709,213.03,212.96,4.6957]
[1738693214207,1.5709,213.03,212.97,18.49579625]
[1738693214587,18.49579625,213.04,213.0,20.0]
[1738693214794,1.6236,213.08,213.03,18.49579625]
[1738693215286,1.6236,213.08,213.01,18.49579625]
[1738693215907,6.3166,213.08,213.01,18.49579625]
[1738693216214,18.49579625,213.05,212.98,20.0]
[1738693216410,13.41184853,213.07,212.99,18.49579625]
[1738693216411,18.49579625,213.07,212.99,18.49579625]
[1738693216594,1.6236,213.08,212.98,20.0]
[1738693216913,1.6236,213.08,213.01,18.49579625]
[1738693217107,1.6236,213.08,213.03,18.49579625]
[1738693217495,1.6236,213.08,213.03,23.18989625]
[1738693218428,1.5132,213.13,213.08,20.0]
[1738693218635,1.5132,213.13,213.11,18.49579625]
[1738693218922,6.4991,213.16,213.11,18.49579625]
[1738693219445,6.4991,213.16,213.04,4.6938]
[1738693219446,18.49579625,213.12,213.04,4.6938]
[1738693219596,71.30848465,213.16,213.1,18.49579625]
[1738693219913,6.4991,213.16,213.12,18.49579625]
[1738693220306,0.063,213.16,213.13,0.12549]
[1738693220617,0.063,213.16,213.15,18.62128625]
[1738693221620,0.063,213.16,213.15,23.31278625]
[1738693221997,0.063,213.16,213.15,23.43827625]
[1738693222719,0.063,213.16,213.15,23.31278625]
[1738693223224,0.063,213.16,213.13,18.49579625]
[1738693224404,0.063,213.16,213.09,18.49579625]
[1738693224608,18.49579625,213.15,213.08,8.3129]
[1738693224804,18.49579625,213.15,213.07,18.49579625]
[1738693225109,18.49579625,213.11,213.03,18.49579625]
[1738693225311,18.49579625,213.09,213.01,18.52579625]
[1738693225529,18.49579625,213.09,213.01,23.22029625]
[1738693225932,18.49579625,213.09,213.01,18.52579625]
[1738693226129,23.18869625,213.09,213.01,18.52579625]
[1738693226335,23.18869625,213.09,213.01,23.22029625]
[1738693226534,18.49579625,213.07,213.01,0.03]
[1738693227818,18.49579625,213.11,213.03,18.49579625]
[1738693228133,1.6341,213.12,213.06,18.49579625]
[1738693228839,1.6341,213.12,213.08,18.49579625]
[1738693229712,24.51829625,213.15,213.08,18.49579625]
[1738693229912,6.0225,213.15,213.08,23.18879625]
[1738693230326,0.063,213.16,213.11,0.12549]
[1738693230512,0.063,213.16,213.14,18.49579625]
[1738693231109,0.063,213.16,213.15,0.12549]
[1738693232418,0.063,213.16,213.15,4.94248]
[1738693233647,0.063,213.16,213.15,4.81699]
[1738693233944,0.063,213.16,213.14,18.49579625]
[1738693234255,0.063,213.16,213.13,4.6917]
[1738693235640,0.063,213.16,213.1,18.49579625]
[1738693236016,0.063,213.16,213.1,23.18839625]
[1738693236340,0.063,213.16,213.11,0.12549]
[1738693236917,0.063,213.16,213.12,18.49579625]
[1738693237151,0.063,213.16,213.13,4.6919]
[1738693238751,0.063,213.16,213.15,0.12549]
[1738693238915,0.063,213.16,213.15,0.25098]
[1738693240352,0.063,213.16,213.15,0.12549]
[1738693240554,0.063,213.16,213.12,18.49579625]
[1738693240718,0.063,213.16,213.12,23.18789625]
[1738693241139,0.063,213.16,213.12,18.49579625]
[1738693242943,0.063,213.16,213.12,18.49579625]
[1738693243141,0.063,213.16,213.1,18.49579625]
[1738693243342,0.063,213.16,213.08,23.18879625]
[1738693244429,0.063,213.16,213.1,18.49579625]
[1738693245034,0.063,213.16,213.12,18.49579625]
[1738693246338,0.063,213.16,213.1,18.49579625]
[1738693247658,0.063,213.16,213.1,23.18819625]
[1738693250062,0.063,213.16,213.11,0.12549]
[1738693250230,0.063,213.16,213.13,0.12549]
[1738693250433,0.063,213.16,213.15,0.12549]
[1738693250957,0.063,213.16,213.15,0.50196]
[1738693251532,0.063,213.16,213.15,13.91380853]
[1738693251934,0.063,213.17,213.16,13.91380853]
[1738693252142,0.063,213.25,213.19,0.25098]
[1738693252459,0.063,213.25,213.21,18.62128625]
[1738693255870,0.063,213.25,213.21,23.31148625]
[1738693256079,0.063,213.25,213.21,37.80312886]
[1738693257340,0.063,213.25,213.21,23.68795625]
[1738693257938,0.063,213.25,213.21,37.80307454]
[1738693258456,0.063,213.25,213.21,24.39122601]
[1738693259043,0.063,213.25,213.21,37.80307454]
[1738693259952,0.063,213.25,213.21,23.31148625]
[1738693260347,1.6695,213.24,213.17,23.18669625]
[1738693260671,1.6695,213.24,213.18,20.0]
[1738693260875,1.6695,213.24,213.17,23.18669625]
[1738693261474,1.6695,213.24,213.18,0.12549]
[1738693261780,6.359,213.24,213.18,0.12549]
[1738693261976,18.49579625,213.21,213.14,4.6917]
[1738693262180,6.359,213.24,213.09,18.52579625]
[1738693262181,18.49579625,213.17,213.09,18.52579625]
[1738693262486,18.49579625,213.17,213.1,4.6926]
[1738693262788,18.49579625,213.19,213.12,20.0]
[1738693263082,18.49579625,213.19,213.11,18.62128625]
[1738693263493,23.18639625,213.19,213.11,23.31348625]
[1738693264054,18.49579625,213.21,213.14,20.0]
[1738693264254,1.6695,213.24,213.17,18.49579625]
[1738693264449,1.6695,213.24,213.2,0.12549]
[1738693264652,1.6695,213.24,213.19,18.49579625]
[1738693265652,1.6695,213.24,213.2,0.12549]
[1738693265891,1.6695,213.24,213.21,18.62128625]
[1738693266268,0.063,213.24,213.21,18.62128625]
[1738693266593,18.49579625,213.3,213.22,0.25098]
[1738693266768,18.49579625,213.3,213.24,0.12549]
[1738693268596,18.49579625,213.25,213.19,18.49579625]
[1738693268761,18.49579625,213.27,213.19,23.18629625]
[1738693269161,18.49579625,213.25,213.17,18.49579625]
[1738693269356,20.12859625,213.25,213.17,18.49579625]
[1738693269587,18.49579625,213.23,213.16,4.6911]
[1738693269790,18.49579625,213.23,213.17,0.12549]
[1738693269986,23.18559625,213.23,213.15,38.49579625]
[1738693270292,23.18559625,213.23,213.16,0.12549]
[1738693271200,18.49579625,213.21,213.13,23.18759625]
[1738693271363,25.15869625,213.21,213.11,26.80799625]
[1738693271560,25.15869625,213.21,213.14,0.12549]
[1738693271877,24.81809625,213.25,213.17,18.49579625]
[1738693272700,1.6328,213.25,213.19,18.49579625]
[1738693273291,24.81789625,213.25,213.18,0.12549]
[1738693273496,24.81789625,213.25,213.17,18.49579625]
[1738693273703,18.49579625,213.23,213.15,18.49579625]
[1738693273869,18.49579625,213.18,213.1,22.11579625]
[1738693274191,18.49579625,213.2,213.12,18.49579625]
[1738693274391,83.3051809,213.24,213.16,18.49579625]
[1738693275592,4.6897,213.23,213.16,23.18709625]
[1738693276093,1.6328,213.25,213.18,18.49579625]
[1738693276398,1.6328,213.25,213.2,18.49579625]
[1738693276776,18.49579625,213.24,213.16,23.31258625]
[1738693277277,18.49579625,213.24,213.16,18.62128625]
[1738693277577,4.6897,213.23,213.16,18.65128625]
[1738693277779,83.3051809,213.22,213.16,0.03]
[1738693277989,18.49579625,213.2,213.16,0.03]
[1738693278318,18.49579625,213.18,213.16,0.03]
[1738693279168,18.49579625,213.17,213.16,0.03]
[1738693279794,23.18679625,213.17,213.16,0.03]
[1738693287902,87.9959809,213.19,213.16,0.03]
[1738693288497,64.80938465,213.19,213.16,0.03]
[1738693288797,64.80938465,213.23,213.17,18.49579625]
[1738693289099,1.6328,213.25,213.16,0.03]
[1738693289100,1.6328,213.25,213.22,18.49579625]
[1738693289280,6.3286,213.26,213.22,18.49579625]
[1738693289885,4.6886,213.28,213.22,18.49579625]
[1738693290107,4.6884,213.29,213.22,18.49579625]
[1738693290297,1.5942,213.3,213.22,23.18559625]
[1738693290482,6.4218,213.31,213.27,18.49579625]
[1738693290902,6.4218,213.31,213.26,18.49579625]
[1738693291277,0.063,213.31,213.27,18.49579625]
[1738693291485,0.063,213.31,213.3,18.49579625]
[1738693292209,0.063,213.31,213.28,23.18429625]
[1738693292503,0.063,213.31,213.28,18.49579625]
[1738693292709,0.063,213.31,213.3,18.62128625]
[1738693292873,0.063,213.31,213.29,18.49579625]
[1738693293076,0.063,213.31,213.28,18.49579625]
[1738693293306,0.063,213.31,213.29,18.49579625]
[1738693293897,0.063,213.31,213.28,18.49579625]
[1738693294710,0.063,213.31,213.29,18.49579625]
[1738693296802,0.063,213.31,213.28,18.49579625]
[1738693298589,0.063,213.31,213.28,11.50083491]
[1738693299276,0.063,213.31,213.29,11.50083491]
[1738693299476,0.063,213.31,213.3,11.50083491]
[1738693300082,0.063,213.31,213.3,11.62632491]
[1738693300280,0.063,213.31,213.3,11.75181491]
[1738693300507,0.063,213.31,213.3,12.00279491]
[1738693300800,0.063,213.31,213.3,16.69099491]
[1738693301583,0.063,213.31,213.3,30.10284344]
[1738693303002,0.063,213.31,213.3,16.69099491]
[1738693303210,0.063,213.31,213.3,11.50083491]
[1738693303384,0.063,213.31,213.27,11.50083491]
[1738693303701,0.063,213.31,213.24,1.5844]
[1738693303702,11.56383491,213.31,213.24,11.50083491]
[1738693303905,11.50083491,213.3,213.22,11.50083491]
[1738693304102,0.063,213.31,213.2,4.6904]
[1738693304103,11.50083491,213.28,213.21,11.50083491]
[1738693304309,11.50083491,213.27,213.2,16.19123491]
[1738693304482,11.50083491,213.28,213.21,11.50083491]
[1738693304805,4.6888,213.27,213.21,18.53887106]
[1738693304986,4.6888,213.27,213.21,0.12549]
[1738693305194,4.6888,213.27,213.21,18.53887106]
[1738693306200,4.6888,213.27,213.21,0.12549]
[1738693306399,23.10188106,213.29,213.21,23.22897106]
[1738693306702,83.22276571,213.3,213.24,0.12549]
[1738693306900,87.91096571,213.3,213.23,18.41338106]
[1738693307977,87.91096571,213.3,213.22,18.41338106]
[1738693308786,4.6891,213.26,213.19,18.53887106]
[1738693308990,18.41338106,213.25,213.17,18.41338106]
[1738693309177,18.41338106,213.23,213.18,20.0]
[1738693309377,18.41338106,213.23,213.16,0.15549]
[1738693309609,18.41338106,213.25,213.17,18.41338106]
[1738693311003,23.10288106,213.24,213.16,18.56887106]
[1738693311376,23.10288106,213.24,213.16,23.26017106]
[1738693313912,4.6886,213.28,213.21,18.41338106]
[1738693315102,4.6886,213.28,213.22,18.41338106]
[1738693315310,4.6884,213.29,213.23,18.41338106]
[1738693316020,4.6884,213.29,213.22,18.41338106]
[1738693317214,4.6888,213.27,213.21,0.12549]
[1738693317517,23.10218106,213.27,213.18,23.10398106]
[1738693318119,23.10218106,213.27,213.19,18.53887106]
[1738693318709,18.41338106,213.22,213.16,0.03]
[1738693318887,18.41338106,213.2,213.16,0.03]
[1738693319315,18.41338106,213.22,213.16,0.03]
[1738693319817,19.92728106,213.24,213.17,18.41338106]
[1738693320118,1.5139,213.24,213.18,18.41338106]
[1738693320318,18.41338106,213.23,213.16,0.03]
[1738693320621,4.6904,213.2,213.16,0.03]
[1738693321045,18.41338106,213.19,213.16,0.03]
[1738693322731,4.6906,213.19,213.16,0.03]
[1738693324136,4.6904,213.2,213.16,0.03]
[1738693325038,11.51680123,213.19,213.16,0.03]
[1738693325251,11.51680123,213.18,213.16,0.03]
[1738693326209,16.20720123,213.2,213.16,0.03]
[1738693327750,11.51680123,213.18,213.16,0.03]
[1738693329415,4.691,213.17,213.16,0.03]
[1738693330023,10.6933,213.21,213.16,0.03]
[1738693330242,16.20670123,213.23,213.16,11.54680123]
[1738693330541,11.51680123,213.22,213.16,0.03]
[1738693331434,66.32328465,213.24,213.17,11.51680123]
[1738693331749,66.32328465,213.24,213.16,0.03]
[1738693331750,6.5654,213.26,213.21,11.51680123]
[1738693332241,64.80938465,213.28,213.21,11.51680123]
[1738693332450,64.80938465,213.28,213.22,11.51680123]
[1738693333309,81.01498588,213.28,213.2,11.51680123]
[1738693334437,81.01498588,213.28,213.2,16.20710123]
[1738693334622,87.91198933,213.28,213.2,23.10410468]
[1738693335631,18.41380468,213.26,213.18,43.10450468]
[1738693335807,18.41380468,213.26,213.16,0.03]
[1738693335808,18.41380468,213.21,213.16,0.03]
[1738693336012,1.25098,213.27,213.16,0.03]
[1738693336013,18.41380468,213.2,213.16,0.03]
[1738693336713,18.41380468,213.18,213.16,0.03]
[1738693337741,4.691,213.17,213.16,0.03]
[1738693338368,18.41380468,213.18,213.16,0.03]
[1738693338527,83.22318933,213.24,213.17,18.41380468]
[1738693338732,64.80938465,213.24,213.21,18.41380468]
[1738693339232,6.664,213.26,213.21,18.41380468]
[1738693339428,83.22318933,213.28,213.21,18.41380468]
[1738693339638,83.22318933,213.28,213.16,0.85891535]
[1738693339639,64.80938465,213.28,213.22,18.41380468]
[1738693339829,64.80938465,213.28,213.23,18.41380468]
[1738693340123,87.91178933,213.28,213.19,18.41380468]
[1738693340324,18.41380468,213.26,213.17,18.41380468]
[1738693340556,64.80938465,213.25,213.17,18.41380468]
[1738693340749,18.41380468,213.24,213.17,18.41380468]
[1738693340956,64.80938465,213.25,213.18,0.12549]
[1738693341136,64.80938465,213.25,213.21,18.41380468]
[1738693341551,64.80938465,213.25,213.22,18.41380468]
[1738693341746,1.5863,213.29,213.22,18.41380468]
[1738693341946,1.5863,213.29,213.24,18.41380468]
[1738693342151,64.80938465,213.3,213.26,18.41380468]
[1738693342460,64.80938465,213.3,213.25,18.41380468]
[1738693344258,0.063,213.31,213.25,23.10300468]
[1738693344555,0.063,213.31,213.27,18.41380468]
[1738693345448,0.063,213.31,213.27,23.10240468]
[1738693345771,18.47680468,213.31,213.23,18.41380468]
[1738693348372,18.41380468,213.3,213.23,23.10340468]
[1738693349570,23.10200468,213.3,213.23,23.10340468]
[1738693349880,23.10200468,213.3,213.23,4.6896]
[1738693350083,18.41380468,213.3,213.23,4.6896]
[1738693350252,0.063,213.31,213.26,18.41380468]
[1738693350578,0.063,213.31,213.23,4.81509]
[1738693350579,0.063,213.31,213.25,18.41380468]
[1738693351088,0.063,213.31,213.28,18.41380468]
[1738693351247,0.063,213.31,213.24,0.37647]
[1738693351248,0.063,213.31,213.3,18.53929468]
[1738693351576,0.063,213.31,213.3,57.01581321]
[1738693352449,0.063,213.31,213.3,43.22749468]
[1738693352652,0.063,213.31,213.3,20.0]
[1738693352961,0.063,213.31,213.25,18.41380468]
[1738693353291,0.063,213.31,213.23,4.6897]
[1738693353455,0.063,213.31,213.24,0.12549]
[1738693354160,0.063,213.31,213.24,0.25098]
[1738693354360,0.063,213.31,213.28,18.41380468]
[1738693354593,0.063,213.31,213.29,18.41380468]
[1738693354882,0.063,213.31,213.29,11.62515852]
[1738693355179,0.063,213.31,213.3,11.49966852]
[1738693355355,0.063,213.31,213.26,20.0]
[1738693355356,0.063,213.31,213.28,11.49966852]
[1738693355655,0.063,213.31,213.28,16.18826852]
[1738693355854,0.063,213.31,213.29,11.62515852]
[1738693357377,0.063,213.31,213.3,5.19016]
[1738693359495,0.063,213.31,213.3,4.93918]
[1738693361198,0.063,213.31,213.3,4.81369]
[1738693361380,0.063,213.31,213.3,16.31335852]
[1738693363200,0.063,213.31,213.29,16.18806852]
[1738693366306,0.063,213.31,213.28,4.6886]
[1738693366494,0.063,213.31,213.27,16.31395852]